Cogmind - Beta 15 @@@ ROGUE MODE // 2025.06.07 @ 19:48:15 Player: Florist Result: Destroyed by G-34 Mercenary with Small Laser Performance ------------- Evolutions (0) 0 Regions Visited (1) 200 Robots Destroyed (26) 130 Value Destroyed (569) 569 Prototype IDs (0) 0 Alien Tech Used (0) 0 Bonus (0) 0 TOTAL SCORE: 899 Bonus ------- None Cogmind --------- Core Integrity 0/250 Matter 300/300 Energy 100/100 System Corruption 0% Temperature Cool (6) Movement Core (250) Ox4 Location -10/Materials Parts ------- > --- POWER (1) -------- (None) > --- PROPULSION (2) --- (None) > --- UTILITY (2) ------ Heat Sink Medium Storage Unit > --- WEAPON (2) ------- Medium Laser Small Laser > --- INVENTORY (10) --- Light Treads Aluminum Leg Heat Sink Seismic Detector Grenade Launcher Grenade Launcher Peak State ------------ > --- POWER ------------ Light Ion Engine > --- PROPULSION ------- Light Treads Light Treads > --- UTILITY ---------- Heat Sink Small Storage Unit > --- WEAPON ----------- Medium Laser Assault Rifle > --- INVENTORY -------- Light Ion Engine Aluminum Leg Aluminum Leg Seismic Detector [Rating: 7] Favorites ----------- Power Light Ion Engine Engine Light Ion Engine Propulsion Light Treads Treads Light Treads Utility Heat Sink Device Heat Sink Storage Small Storage Unit Weapon Medium Laser Energy Gun Medium Laser Ballistic Gun Assault Rifle Build | -11 -10 ------- Run | Yrd Mat Slots Evolved . | . . Power . | . . Propulsion . | . . Utility . | . . Weapon . | . . Parts Attached 16 | 7 9 Power 4 | 1 3 Engine 4 | 1 3 Core . | . . Reactor . | . . Propulsion 3 | 2 1 Treads 3 | 2 1 Leg . | . . Wheel . | . . Hover . | . . Flight . | . . Utility 3 | 1 2 Device 1 | . 1 Storage 2 | 1 1 Processor . | . . Hackware . | . . Protection . | . . Artifact . | . . Weapon 6 | 3 3 Energy Gun 5 | 2 3 Energy Cannon . | . . Ballistic Gun 1 | 1 . Ballistic Cannon . | . . Launcher . | . . Special Weapon . | . . Impact Weapon . | . . Slashing Weapon . | . . Piercing Weapon . | . . Special Melee Weapon . | . . Unidentified Prototypes . | . . Parts Lost 7 | . 7 Power 3 | . 3 Propulsion 2 | . 2 Utility . | . . Weapon 2 | . 2 Highest Loss Streak 2 | . 2 To Critical Strikes . | . . Average Backups 5 | 2 6 Power . | . . Propulsion 1 | 1 2 Utility 1 | . 1 Weapon 1 | . 1 Tool/Special . | . . Unused Backups 6 | . 6 Power . | . . Propulsion 2 | . 2 Utility 2 | . 2 Weapon 2 | . 2 Tool/Special . | . . Average Slot Usage (%) 93 | . 93 Engine 13 | . 13 Treads 24 | . 24 Device 12 | . 12 Storage 14 | . 14 Energy Gun 26 | . 26 Ballistic Gun 1 | . 1 Peak Build Rating 7 | 6 7 Average Rating 6 | 5 6 On Entrance 3 | . 6 Naked Turns . | . . Heaviest Build 20 | 12 20 Greatest Support 40 | 40 40 Greatest Overweight (x) 5 | . 5 Average Overweight (x) . | . . Largest Inventory Capacity 10 | 8 10 Average Capacity 8 | 7 8 Most Carried 8 | 4 8 Average Carried 5 | 2 6 Final Capacity 10 | 8 10 Final Carried 6 | 4 6 Class Distribution -------------------- 100% | Mutant Dominant Class ---------------- Mutant | -10/Materials Resources | -11 -10 ----------- Run | Yrd Mat Matter Collected 464 | 284 180 Remotely . | . . Salvage Created 787 | 65 722 Parts 58 | 9 49 Haulers Intercepted 2 | . 2 Recyclers Shooed 2 | 1 1 Parts Field Recycled . | . . Retrieved Matter . | . . Parts Self-Destructed . | . . Prevented . | . . Kills | -11 -10 ------- Run | Yrd Mat Combat Hostiles Destroyed 17 | . 17 Guns 16 | . 16 Classes Destroyed 6 | 1 5 Tunneler 3 | 3 . Hauler 2 | . 2 Operator 2 | . 2 Watcher 2 | . 2 Swarmer 6 | . 6 Grunt 11 | . 11 Best Kill Streak 5 | 3 5 Combat Bots Only 5 | . 5 Max Kills in Single Turn 1 | 1 1 Gunslinging . | . . Exploded . | . . Melee . | . . Uniques/NPCs Destroyed . | . . Combat | -11 -10 -------- Run | Yrd Mat Hostile Shots Fired 103 | . 103 Missed 22 | . 22 Hits 81 | . 81 Projectile 81 | . 81 Damage Taken 1072 | . 1072 Core 259 | . 259 Absorbed by Shields . | . . Core Remaining (%) 100 | 100 . Volleys Fired 98 | 10 88 Largest 2 | 2 2 Hottest 100 | 70 100 Shots Fired 195 | 20 175 Gun 195 | 20 175 Cannon . | . . Launcher . | . . Special . | . . Kinetic 33 | 10 23 Thermal 162 | 10 152 Explosive . | . . Electromagnetic . | . . Robot Hit Streak 10 | 5 10 Robot Miss Streak 4 | 2 4 Penetration Max . | . . Secondary Targets . | . . Shots Hit Robots 125 | 12 113 Core Hits 43 | 3 40 Critical Kills . | . . Critical Parts Destroyed . | . . Critical Strikes 12 | . 12 Burn 12 | . 12 Melee Attacks . | . . Impact . | . . Slashing . | . . Piercing . | . . Sneak Attacks . | . . Combat Hostiles . | . . Follow-up Attacks . | . . Damage Inflicted 1640 | 166 1474 Guns 1580 | 166 1414 Cannons . | . . Explosions 60 | . 60 Melee . | . . Ramming . | . . Kinetic 278 | 103 175 Thermal 1302 | 63 1239 Explosive 60 | . 60 Electromagnetic . | . . Impact . | . . Slashing . | . . Piercing . | . . Highest Corruption . | . . Average Corruption . | . . Corruption Purged . | . . Corruption Blocked . | . . Overload Shots . | . . Overflow Damage . | . . Projectiles . | . . Explosions . | . . Melee . | . . Knockbacks . | . . Impact . | . . Kinetic . | . . Secondary . | . . Self-Inflicted Damage 186 | . 186 Shots 2 | . 2 Rammed . | . . Targets Rammed . | . . Kicked . | . . Crushed . | . . Highest Temperature 165 | 63 165 Average Temperature 39 | 26 41 Received Heat Transfer 396 | . 396 Siege Activations . | . . Martial Activations . | . . Shielding Activations . | . . Robots Disrupted . | . . Combat Hostiles . | . . Robots Corrupted . | . . Combat Hostiles . | . . Parts Fried . | . . Impact Corruptions . | . . Robots Melted 1 | . 1 Combat Hostiles 1 | . 1 Parts Melted 13 | . 13 Heat Transferred 4725 | 185 4540 Parts Sabotaged . | . . Parts Stolen . | . . Parts Stripped . | . . Power Chain Reactions . | . . Alert | -11 -10 ------- Run | Yrd Mat Maximum Alert Level . | . . Low Security (%) 100 | 100 100 Level 1 . | . . Level 2 . | . . Level 3 . | . . Level 4 . | . . Level 5 . | . . High Security . | . . Max Security . | . . Peak Influence 188 | 10 188 Initial . | . . Average 56 | 1 64 Influence Increases 585 | 15 570 Destroy 0b10 Robot/C 340 | . 340 Destroy 0b10 Robot/NC 45 | 15 30 Destroy Leader 78 | . 78 Successful Hack 5 | . 5 Disable Machine 30 | . 30 Destroy Structure 27 | . 27 Lose Combat Pursuer 60 | . 60 Influence Decreases 459 | 15 444 Time Decay 389 | 15 374 Lost Part 70 | . 70 Squads Dispatched 4 | . 4 Investigation . | . . Extermination . | . . Reinforcement 4 | . 4 Assault . | . . Garrison . | . . Intercept . | . . Searches Triggered . | . . Construction Impeded . | . . Haulers Reinforced . | . . Active Scanning Responses . | . . Cargo Convoy Interrupts . | . . Stealth | -11 -10 --------- Run | Yrd Mat Distress Signals 2 | . 2 Communications Jammed . | . . Distress Signals . | . . Times Spotted 36 | . 36 Peak Tracking Total 5 | . 5 Tactical Retreats 4 | . 4 Traps | -11 -10 ------- Run | Yrd Mat Traps Triggered . | . . Indirectly . | . . Trap Hack Attempts . | . . Triggered . | . . Disarmed . | . . Reprogrammed . | . . Reused . | . . Traps Extracted . | . . Installed . | . . Triggered . | . . Machines | -11 -10 ---------- Run | Yrd Mat Machines Disabled 2 | . 2 Max in Single Turn 2 | . 2 Machines Repaired . | . . Machines Dismantled . | . . Machines Sabotaged . | . . Overloaded Fab Kills . | . . Hacking | -11 -10 --------- Run | Yrd Mat Machines Accessed 1 | . 1 Terminals 1 | . 1 Fabricators . | . . Repair Stations . | . . Recycling Units . | . . Scanalyzers . | . . Garrison Access . | . . Total Hacks 2 | . 2 Successful 1 | . 1 Failed 1 | . 1 Catastrophic . | . . Database Lockouts . | . . Manual 2 | . 2 Terminals 2 | . 2 Fabricators . | . . Repair Stations . | . . Recycling Units . | . . Scanalyzers . | . . Garrison Access . | . . Terminal Hacks . | . . Fabricator Hacks . | . . Repair Station Hacks . | . . Recycling Unit Hacks . | . . Scanalyzer . | . . Garrison Access Hacks . | . . Unauthorized Hacks 1 | . 1 Terminals 1 | . 1 Botnet 1 | . 1 Fabricators . | . . Repair Stations . | . . Recycling Units . | . . Scanalyzers . | . . Garrison Access . | . . Data Cores Recovered . | . . Used . | . . Hacking Detections 1 | . 1 Full Trace Events . | . . Feedback Events . | . . Feedback Blocked . | . . Robot Schematics Acquired . | . . Robots Built . | . . Authchips . | . . Time . | . . Total Robot Build Rating . | . . Part Schematics Acquired . | . . Parts Built . | . . Authchips . | . . Time . | . . Total Part Build Rating . | . . Parts Repaired . | . . Time . | . . Parts Recycled . | . . Recycled Matter . | . . Retrieved Matter . | . . Retrieved Components . | . . Parts Scanalyzed . | . . Part Schematics Acquired . | . . Parts Damaged . | . . Bothacking | -11 -10 ------------ Run | Yrd Mat Used RIF Installer . | . . Robots Hacked . | . . Non-combat . | . . Combat . | . . Robot Hacks Applied . | . . Relay Couplers Released . | . . Fabnet Peak Effective % . | . . Robots Rewired . | . . Allies Hacked . | . . Hacks Repelled . | . . Allies | -11 -10 -------- Run | Yrd Mat Total Allies . | . . Largest Group . | . . Highest-Rated Group . | . . Highest-Rated Ally . | . . Total Orders . | . . Ally Attacks . | . . Total Damage . | . . Kills . | . . Allies Corrupted . | . . Allies Melted . | . . Intel | -11 -10 ------- Run | Yrd Mat Active Infowar (turns) . | . . Robot Analysis Total . | . . Derelict Logs Recovered . | . . Drone Launches . | . . Drone Recoveries . | . . Exploration | -11 -10 ------------- Run | Yrd Mat Turns Passed 1152 | 152 1000 Spaces Moved 483 | 69 414 Core 8 | 2 6 Treads 475 | 67 408 Legs . | . . Wheels . | . . Hover . | . . Flight . | . . Fastest Speed 50 | 50 160 Average Speed 160 | 156 161 Slowest Speed 300 | 160 300 Overloaded Moves . | . . Propulsion Burnouts . | . . Robots Hopped . | . . Potential Cave-ins . | . . Cave-ins Triggered . | . . Exploration Rate (%) 40 | 4 76 Regions Visited 1 Branch Regions . Pre-discovered Areas . | . . Known Exits Taken . | . . Unknown Exits Taken 1 | 1 . Scrap Searched . | . . Spaces Dug . | . . Terrain Destroyed 29 | . 29 Melee . | . . Projectile . | . . AOE 29 | . 29 Terrain Rammed . | . . Walls Destroyed . | . . Machines Disabled . | . . Actions | -11 -10 --------- Run | Yrd Mat Total 660 | 90 570 Wait 50 | . 50 Move 482 | 68 414 Hop . | . . Pick Up 8 | 4 4 Fast Attach 10 | 7 3 Attach 3 | . 3 Detach . | . . Swap 4 | . 4 Drop 5 | 1 4 Fire 98 | 10 88 Melee . | . . Ram . | . . Kick . | . . Crush . | . . Escape Stasis . | . . Rewire . | . . Trap . | . . Miscellaneous . | . . Route ------- -11/Scrapyard -10/Materials (discovered 3 exits: [*Mat x2] / [*Min]) History --------- Turn | Location | Event 15 | -11/Scrapyard | Discovered new exit (range 15) 153 | -11/Scrapyard | Entered Materials 297 | -10/Materials | Discovered new exit (range 16) 321 | -10/Materials | Build established: Mutant 638 | -10/Materials | Discovered new exit (range 7) 1027 | -10/Materials | Core integrity fell below 50% 1027 | -10/Materials | Core integrity fell below 20% 1029 | -10/Materials | Discovered new exit (range 16) 1153 | -10/Materials | Destroyed by G-34 Mercenary with Small Laser Last Messages --------------- 01068_ K-01 Serf collects debris. 01070_ U-05 Engineer lays Concrete. 01071_ The unstable cave ceiling collapses. 01071_ U-05 Engineer lays Concrete. 01071_ K-01 Serf collects debris. 01072_ U-05 Engineer lays Concrete. 01074_ K-01 Serf collects debris. 01075_ U-05 Engineer lays Concrete. 01078_ K-01 Serf collects debris. 01079_ U-05 Engineer lays Concrete. 01082_ K-01 Serf collects debris. 01083_ U-05 Engineer builds a Wall. 01086_ K-01 Serf collects debris. 01087_ U-05 Engineer lays Concrete. 01088_ U-05 Engineer builds a Wall. 01089_ K-01 Serf collects debris. 01094_ U-05 Engineer lays Concrete. 01108_ Acquired 10 matter. 01137_ Lgt. Treads destroyed. 01147_ Lgt. Ion Engine destroyed. Map ----- +----------------------------------------------------+ | ?????????????????# ?# #??????# | | ?????????????????######?# #####+#####???# | | ????????????????????????# # % = #???## | | ????????????????????????# # #????? | | ????????????????????????# # #????? | | ????????????????????????# # #????? | | ????????????????????????# # #????? | | ????????????????????????# # #????? | | ????????????????????????# # #????? | | ????????????????????????# # #????? | | ???????????????????#+#### ###########????? | | ???????????????????# r #??????????????? | | ???????????????????# #?????####?????? | | ????????????"?????## k ###### ### | | ??????????""" ????# | | ??????????""" "???+ < | | ??????????? ???# | | ???????????? ! ??# ####+##" "### | | ????????????? ??# #??????" !"! ???? | | ??????????????% ?# #?????????"?????? | | ?????????????###/## #???????????????? | | ?????????????? /t %% ##??????????????? | | ???????????????# ## #??????????????? | | ???????????????# o##/ #??????????????? | | ???????????????# ## T #??????????????? | | ???????????????# @ ## #??????????????? | | ???????????????# ## #??????????????? | | ???????????????# ### ##??????????????? | | ???????????????# ### #?# #???????????????? | | ???????????????# ??# #?# +???????????????? | | ???????????????# ??#g#?# #???????????????? | | ????????????####+###/##? #???????????????? | | ????????????# #?# ##??##########+### | | ????????????# T ###+##### | | ????????????# ##^ # | | ????????????# """ """ ## "" #"" | | ????????????# """ """ ## "T #"T """ | | ????????????# """ """ ## "" #"" """" | | ????????????# ## # """" | | ????????????# ## %% # """" | | ?????????###########+######+### """ | | ??????# % % % * | | ??????# %= | | ??????# ! | | ??????# ###+################# ######## | | ??????????? ??????????????######+####### | | ??????????#????????????????# # | | ???????????????????????????# # | | ???????????????????????????# ## | | ???????????????????????????#! [] """ # # | +----------------------------------------------------+ Best States ------------- Heat Dissipation 35 Energy Generation 10 Energy Capacity 250 Matter Stores 300 Matter Capacity 300 Sight Range 16 Terrain Scan Density 10 Evasion (%) 40 Recoil Reduction 2 Item Schematics ----------------- None Robot Schematics ------------------ None Fabricated ------------ Nothing Repaired ---------- Nothing Alien Tech Used ----------------- None Achievements -------------- None Challenges ------------ None Game ------ Seed MetafieldIntegrityMatter Manual? 0 Play Time 00:07:33 Cumulative 118.6 hours Start 2025.06.07 @ 03:19:02 End 2025.06.07 @ 19:48:15 Sessions 2 Manual Loads 0 Difficulty Rogue Special Mode None Game No. 126 Rogue 126 Adventurer 0 Explorer 0 Win Type - Total 6 Types 4/0/0/2/0/0/0/0/0/0 Lore% 56 Gallery% 55 Achievement% 52 Wizard Run 0 Options --------- Layout 1 ASCII 0 Keyboard 0 Movement Mouse Keybinds 0 Fullscreen 1 Font 32/SmallcapsGlow Map View 77x35 Zoom Use 0% Tactical HUD 1 Map Filters NONE Filters NONE Steam 1 RUN: ddd745da-f563-4605-a049-08e967acd97d